bitfinex-derivatives/quotes_BTCF0:USTF0_20250329
["timestamp","ask_amount","ask_price","bid_price","bid_amount"]
[1743280172459,0.1209663,82699.0,82698.0,0.0018]
[1743280173155,0.2182663,82699.0,82698.0,0.0018]
[1743280173347,0.2182663,82699.0,82698.0,0.0028]
[1743280174953,0.2182663,82699.0,82698.0,0.0048]
[1743280177650,0.2182663,82699.0,82698.0,0.003]
[1743280182263,0.2182663,82699.0,82698.0,0.00488]
[1743280182461,0.2182663,82699.0,82698.0,0.003]
[1743280183649,0.2182663,82699.0,82698.0,0.0048]
[1743280184854,0.2182663,82699.0,82698.0,0.003]
[1743280185659,0.33918747,82699.0,82698.0,0.003]
[1743280186064,0.33918747,82699.0,82691.0,0.05]
[1743280186065,0.1209766,82692.0,82691.0,0.05]
[1743280186256,0.6029766,82692.0,82691.0,0.0518]
[1743280186856,0.7025766,82692.0,82691.0,0.0518]
[1743280187264,0.7025766,82692.0,82691.0,0.0548]
[1743280188556,0.7025766,82692.0,82691.0,0.053]
[1743280189150,0.7025766,82692.0,82691.0,0.056]
[1743280189364,0.71499604,82692.0,82691.0,0.056]
[1743280194670,0.71499604,82692.0,82691.0,0.1042]
[1743280197771,0.54379604,82692.0,82691.0,0.1042]
[1743280198074,0.66499604,82692.0,82691.0,0.1042]
[1743280198262,0.66499604,82692.0,82691.0,0.154]
[1743280198669,0.66499604,82692.0,82691.0,0.15584]
[1743280198869,0.66499604,82692.0,82691.0,0.20674]
[1743280199466,0.30419604,82692.0,82691.0,0.20674]
[1743280200575,0.30419604,82692.0,82691.0,0.1042]
[1743280200783,0.1209883,82684.0,82683.0,0.0476]
[1743280200968,0.4817883,82684.0,82683.0,0.05284]
[1743280201169,0.121,82676.0,82675.0,0.21495788]
[1743280201371,0.121,82676.0,82675.0,0.21675788]
[1743280201372,0.2422,82676.0,82675.0,0.21675788]
[1743280201764,0.3377,82676.0,82675.0,0.21675788]
[1743280202167,0.34391148,82676.0,82675.0,0.21675788]
[1743280202978,0.34291148,82676.0,82675.0,0.21675788]
[1743280203278,0.121,82676.0,82675.0,0.21675788]
[1743280204781,0.25110547,82676.0,82675.0,0.21675788]
[1743280204973,0.1210059,82672.0,82671.0,0.28838404]
[1743280205167,0.1210263,82658.0,82657.0,0.21578406]
[1743280205473,0.2435063,82658.0,82657.0,0.57786406]
[1743280205674,0.2435063,82658.0,82657.0,0.21706406]
[1743280206074,0.2435063,82658.0,82657.0,0.26416406]
[1743280207679,0.2435063,82658.0,82657.0,0.26516406]
[1743280208180,0.25538631,82658.0,82657.0,0.26516406]
[1743280208978,0.25538631,82658.0,82657.0,0.04938]
[1743280209570,0.25538631,82658.0,82657.0,0.0481]
[1743280210984,0.25538631,82658.0,82657.0,0.04942]
[1743280211375,0.25538631,82658.0,82657.0,0.0481]
[1743280212475,0.25538631,82658.0,82657.0,0.04938]
[1743280215182,0.25538631,82658.0,82657.0,0.0481]
[1743280216387,0.13418631,82658.0,82657.0,0.0481]
[1743280216585,0.1223063,82658.0,82657.0,0.09568]
[1743280218291,0.1223063,82658.0,82657.0,0.14278]
[1743280218292,0.13473596,82658.0,82657.0,0.14278]
[1743280218590,0.13473596,82658.0,82657.0,0.001]
[1743280219286,0.22313596,82658.0,82657.0,0.001]
[1743280221192,0.22313596,82658.0,82657.0,0.00228]
[1743280221575,0.22313596,82658.0,82657.0,0.12498]
[1743280223278,0.22313596,82658.0,82657.0,0.1237]
[1743280223479,0.22313596,82658.0,82657.0,0.12498]
[1743280224393,0.2107063,82658.0,82657.0,0.12498]
[1743280224585,0.1223063,82658.0,82657.0,0.2460078]
[1743280225487,0.1223063,82658.0,82657.0,0.12498]
[1743280227080,0.1223063,82658.0,82657.0,0.08498]
[1743280227281,0.1210351,82652.0,82651.0,0.00048396]
[1743280227585,0.1223151,82652.0,82651.0,0.00176396]
[1743280228286,0.2085151,82652.0,82651.0,0.00176396]
[1743280228489,0.2085151,82652.0,82651.0,0.00576396]
[1743280230490,0.2085151,82652.0,82651.0,0.00448396]
[1743280236696,0.5693151,82652.0,82651.0,0.00448396]
[1743280238486,0.2085151,82652.0,82651.0,0.00448396]
[1743280238697,0.5693151,82652.0,82651.0,0.00448396]
[1743280239099,0.1210571,82637.0,82636.0,0.4018]
[1743280239289,0.1216971,82637.0,82636.0,0.5673386]
[1743280240497,0.1625971,82637.0,82636.0,0.6088386]
[1743280240698,0.1625971,82637.0,82636.0,0.6148386]
[1743280240901,0.1625971,82637.0,82636.0,0.49978]
[1743280241097,0.1216971,82637.0,82636.0,0.6208386]
[1743280241302,0.00132,82637.0,82636.0,0.6208386]
[1743280241496,0.1212,82658.0,82644.0,0.1210469]
[1743280241691,0.63900408,82659.0,82644.0,0.4835269]
[1743280241887,0.63900408,82659.0,82644.0,0.5684269]
[1743280241888,0.1210437,82647.0,82644.0,0.5684269]
[1743280242104,0.1210371,82651.0,82644.0,0.58396328]
[1743280242293,0.0605177,82652.0,82644.0,0.58396328]
[1743280242491,0.1210424,82648.0,82644.0,0.58396328]
[1743280242691,0.1210429,82647.0,82644.0,0.58396328]
[1743280243203,0.1210407,82649.0,82644.0,0.58396328]
[1743280243395,0.0605192,82650.0,82644.0,0.58396328]
[1743280243697,0.21769158,82659.0,82644.0,0.73396328]
[1743280243910,0.21769158,82659.0,82653.0,0.1210337]
[1743280244100,0.21769158,82659.0,82658.0,0.1210263]
[1743280244400,0.1214,82676.0,82675.0,0.1210015]
[1743280244590,0.1214,82676.0,82675.0,0.21569822]
[1743280244791,0.1214,82676.0,82675.0,0.25649822]
[1743280245905,0.1214,82676.0,82675.0,0.27241846]
[1743280246096,0.1214,82676.0,82675.0,0.25649822]
[1743280247397,0.0004,82676.0,82675.0,0.25649822]
[1743280248192,0.1214,82676.0,82675.0,0.6049815]
[1743280248797,0.1214,82676.0,82675.0,0.2441815]
[1743280249100,0.1214,82676.0,82675.0,0.6049815]
[1743280249791,0.0004,82676.0,82675.0,0.6049815]
[1743280250499,0.1214,82676.0,82675.0,0.6049815]
[1743280250899,0.0004,82676.0,82675.0,0.6049815]
[1743280252406,0.0004,82676.0,82675.0,0.61721346]
[1743280257905,0.0004,82676.0,82675.0,0.97801346]
[1743280260313,0.0004,82676.0,82675.0,0.25641346]
[1743280260510,0.0004,82676.0,82675.0,0.97801346]
[1743280260813,0.0604846,82697.0,82691.0,0.1209781]
[1743280261017,0.0604854,82696.0,82691.0,0.1226581]
[1743280261220,0.0604865,82695.0,82691.0,0.1957581]
[1743280261422,0.0371,82699.0,82691.0,0.1957581]
[1743280261811,0.0371,82699.0,82698.0,0.1209678]
[1743280262010,0.0371,82699.0,82698.0,0.1226478]
[1743280262318,0.00018145,82700.0,82699.0,0.1209663]
[1743280262521,0.00018145,82700.0,82699.0,0.1593463]
[1743280262719,0.00018145,82700.0,82699.0,0.1957463]
[1743280263420,0.0004,82708.0,82707.0,0.1209546]
[1743280263606,0.0004,82708.0,82707.0,0.4835146]
[1743280263923,0.1213532,82708.0,82707.0,0.5586146]
[1743280264219,0.1580532,82708.0,82707.0,0.5586146]
[1743280265618,0.1590532,82708.0,82707.0,0.5586146]
[1743280267120,0.1590532,82708.0,82707.0,0.36256]
[1743280267420,0.1590532,82708.0,82707.0,0.4835146]
[1743280268016,0.1590532,82708.0,82707.0,0.36256]
[1743280268415,0.5198532,82708.0,82707.0,0.00176]
[1743280268614,0.1814454,82704.0,82703.0,0.1209546]
[1743280268815,0.1814454,82704.0,82703.0,0.1226346]
[1743280270421,0.19330904,82704.0,82703.0,0.1226346]
[1743280271827,0.19430904,82704.0,82703.0,0.00168]
[1743280272719,0.1209707,82697.0,82696.0,0.1209698]
[1743280273019,0.1209707,82697.0,82696.0,0.1226498]
[1743280273828,0.1985707,82697.0,82696.0,0.1226498]
[1743280274031,0.1985707,82697.0,82696.0,0.1590498]
[1743280274218,0.1995707,82697.0,82696.0,0.1590498]
[1743280274419,0.1995707,82697.0,82696.0,0.17490217]
[1743280274617,0.1995707,82697.0,82696.0,0.21470217]
[1743280275327,0.0396,82697.0,82696.0,0.21470217]
[1743280275516,0.1219693,82697.0,82696.0,0.21470217]
[1743280276322,0.1586693,82697.0,82696.0,0.21471126]
[1743280277229,0.0377,82697.0,82696.0,0.21471126]
[1743280277423,0.0377,82697.0,82696.0,0.21483318]
[1743280277624,0.1586693,82697.0,82696.0,0.24040657]
[1743280277828,0.0377,82697.0,82696.0,0.24040657]
[1743280278026,0.001,82697.0,82696.0,0.24040657]
[1743280278632,0.1219693,82697.0,82696.0,0.24040657]
[1743280279024,0.1219693,82697.0,82696.0,0.13863318]
[1743280279537,0.1906693,82697.0,82696.0,0.13863318]
[1743280280330,0.1906693,82697.0,82696.0,0.01766338]
[1743280280331,0.20285832,82697.0,82696.0,0.01766338]
[1743280280529,0.20142056,82697.0,82696.0,0.00168]
[1743280280831,0.18923154,82697.0,82696.0,0.00168]
[1743280281031,0.18923154,82697.0,82696.0,0.1226507]
[1743280281332,0.1896693,82697.0,82696.0,0.13868324]
[1743280281833,0.0687,82697.0,82696.0,0.13868324]
[1743280282035,0.0687,82697.0,82696.0,0.20768324]
[1743280282432,0.0687,82697.0,82696.0,0.23362699]
[1743280283138,0.1896693,82697.0,82696.0,0.23362699]
[1743280284034,0.1896693,82697.0,82696.0,0.59442699]
[1743280285438,0.1896693,82697.0,82696.0,0.40445629]
[1743280286033,0.1896693,82697.0,82696.0,0.43929616]
[1743280286535,0.1896693,82697.0,82696.0,0.56026686]
[1743280286726,0.1896693,82697.0,82696.0,0.59346686]
[1743280287337,0.1896693,82697.0,82696.0,0.23266686]
[1743280287534,0.1896693,82697.0,82696.0,0.59346686]
[1743280289429,0.0333,82697.0,82696.0,0.59346686]
[1743280289636,0.0366,82705.0,82704.0,0.120959]
[1743280289847,0.0366,82705.0,82704.0,0.16473516]
[1743280290346,0.0366,82705.0,82704.0,0.22973516]
[1743280290648,0.1575576,82705.0,82704.0,0.22973516]
[1743280291343,0.0366,82705.0,82704.0,0.22973516]
[1743280291842,0.0698,82707.0,82706.0,0.1209561]
[1743280291843,0.1907546,82707.0,82706.0,0.1209561]
[1743280292044,0.1907546,82707.0,82706.0,0.13879616]
[1743280294444,0.1907546,82707.0,82706.0,0.1226361]
[1743280295539,0.1907546,82707.0,82706.0,0.138427]
[1743280296451,0.0698,82707.0,82706.0,0.138427]
[1743280297144,0.0698,82707.0,82706.0,0.1226361]
[1743280297536,0.0698,82707.0,82706.0,0.13857868]
[1743280297741,0.1907546,82707.0,82706.0,0.13857757]
[1743280298042,0.1907546,82707.0,82706.0,0.15375574]
[1743280299646,0.1907546,82707.0,82706.0,0.15378803]
[1743280301646,0.1907546,82707.0,82706.0,0.15378734]
[1743280303039,0.1907546,82707.0,82706.0,0.03283124]
[1743280303645,0.1907546,82707.0,82706.0,0.15378734]
[1743280303947,0.1907546,82707.0,82706.0,0.13860917]
[1743280305548,0.20283504,82707.0,82706.0,0.13860917]
[1743280306844,0.1907546,82707.0,82706.0,0.13860917]
[1743280307645,0.1907546,82707.0,82706.0,0.20560917]
[1743280309448,0.1907546,82707.0,82706.0,0.08465307]
[1743280309650,0.1907546,82707.0,82706.0,0.20560917]
[1743280310851,0.0698,82707.0,82706.0,0.20560917]
[1743280311155,0.1907546,82707.0,82706.0,0.20560917]
[1743280311744,0.1907546,82707.0,82706.0,0.21744352]
[1743280312958,0.1907546,82707.0,82706.0,0.21745026]
[1743280313158,0.1907546,82707.0,82706.0,0.20561591]
[1743280315458,0.1907546,82707.0,82706.0,0.20553267]
[1743280317249,0.1907546,82707.0,82706.0,0.20561811]
[1743280319949,0.0352,82707.0,82706.0,0.20561811]
[1743280320155,0.0004,82708.0,82707.0,0.1209546]
[1743280320355,0.0004,82708.0,82707.0,0.13861661]
[1743280320552,0.0004,82708.0,82707.0,0.20331661]
[1743280321962,0.1213532,82708.0,82707.0,0.20331661]
[1743280325465,0.4821532,82708.0,82707.0,0.00168]
[1743280326271,0.4821532,82708.0,82707.0,0.21780573]
[1743280328667,0.5449532,82708.0,82707.0,0.21780573]
[1743280329276,0.66586121,82708.0,82707.0,0.21780573]
[1743280329669,0.66586121,82708.0,82707.0,0.00168]
[1743280329874,0.120962,82702.0,82701.0,0.21612573]
[1743280330068,0.120962,82702.0,82701.0,0.21780573]
[1743280330267,0.120962,82702.0,82701.0,0.33876913]
[1743280330468,0.0655,82703.0,82702.0,0.120962]
[1743280330669,0.1864605,82703.0,82702.0,0.189442]
[1743280331872,0.0655,82703.0,82702.0,0.189442]
[1743280332176,0.0655,82703.0,82702.0,0.550242]
[1743280332376,0.032,82703.0,82702.0,0.550242]
[1743280332765,0.032,82703.0,82702.0,0.56254154]
[1743280332971,0.0004,82708.0,82706.0,0.1209561]
[1743280333177,0.0004,82708.0,82707.0,0.2197546]
[1743280333373,0.18131394,82712.0,82711.0,0.1209488]
[1743280333679,0.18131394,82712.0,82711.0,0.4834288]
[1743280333882,0.18131394,82712.0,82711.0,0.49874535]
[1743280334270,0.18131394,82712.0,82711.0,0.56324535]
[1743280334871,0.18131394,82712.0,82711.0,0.5479288]
[1743280335387,0.30226124,82712.0,82711.0,0.5479288]
[1743280335771,0.30226124,82712.0,82711.0,0.56323576]
[1743280336275,0.1209473,82712.0,82711.0,0.56323576]
[1743280336472,0.0004,82740.0,82711.0,0.44228693]
[1743280336672,0.034,82724.0,82723.0,0.4817313]
[1743280336981,0.0004,82724.0,82723.0,0.4834113]
[1743280337181,0.0004,82724.0,82723.0,0.5473113]
[1743280340581,0.1213298,82724.0,82723.0,0.5473113]
[1743280341086,0.1213298,82724.0,82723.0,0.00168]
[1743280341386,0.1209342,82721.0,82720.0,0.21582694]
[1743280341590,0.4828942,82721.0,82720.0,0.21706694]
[1743280341776,0.1209473,82712.0,82711.0,0.35861536]
[1743280342083,0.1209503,82710.0,82707.0,0.43052826]
[1743280342286,0.1209503,82710.0,82707.0,0.43116826]
[1743280342287,0.1209532,82708.0,82707.0,0.43116826]
[1743280342583,0.1216332,82708.0,82707.0,0.43116826]
[1743280342784,0.1216332,82708.0,82707.0,0.00064]
[1743280342983,0.1209605,82703.0,82702.0,0.35938212]
[1743280343179,0.2426405,82703.0,82702.0,0.36002212]
[1743280343577,0.3067405,82703.0,82702.0,0.36002212]
[1743280344875,0.3374405,82703.0,82702.0,0.36002212]
[1743280345477,0.2164405,82703.0,82702.0,0.48098412]
[1743280345675,0.3067405,82703.0,82702.0,0.48098412]
[1743280346080,0.3067405,82703.0,82702.0,0.54678412]
[1743280346784,0.3067405,82703.0,82702.0,0.42582212]
[1743280346984,0.3067405,82703.0,82702.0,0.36002212]
[1743280348487,0.3067405,82703.0,82702.0,0.00064]
[1743280348678,0.3067405,82703.0,82699.0,0.00018133]
[1743280348679,0.1209649,82700.0,82699.0,0.00018133]
[1743280348879,0.4825249,82700.0,82699.0,0.00018133]
[1743280349991,0.1814727,82690.0,82689.0,0.1209799]
[1743280350192,0.1821527,82690.0,82689.0,0.1216599]
[1743280350393,0.2440527,82690.0,82689.0,0.1216599]
[1743280350592,0.2440527,82690.0,82689.0,0.1856599]
[1743280351187,0.2440527,82690.0,82689.0,0.1916599]
[1743280351796,0.00068,82690.0,82689.0,0.1916599]
[1743280352094,0.00018133,82698.0,82697.0,0.1209693]
[1743280352295,0.00086133,82698.0,82697.0,0.1216093]
[1743280352680,0.00086133,82698.0,82697.0,0.1856093]
[1743280353092,0.12182913,82698.0,82697.0,0.1856093]
[1743280353294,0.12182913,82698.0,82697.0,0.1866093]
[1743280354384,0.12182913,82698.0,82697.0,0.1876093]
[1743280354796,0.12182913,82698.0,82697.0,0.5484093]
[1743280356092,0.00086133,82698.0,82697.0,0.5484093]
[1743280356298,0.00018133,82698.0,82697.0,0.5484093]
[1743280357395,0.12114913,82698.0,82697.0,0.5484093]
[1743280357595,0.12182913,82698.0,82697.0,0.5484093]
[1743280357998,0.12114913,82698.0,82697.0,0.5484093]
[1743280358591,0.12182913,82698.0,82697.0,0.5484093]
[1743280359405,0.00086133,82698.0,82697.0,0.5484093]
[1743280362305,0.12182913,82698.0,82697.0,0.5484093]
[1743280362900,0.12182913,82698.0,82697.0,0.36344]
[1743280363205,0.12182913,82698.0,82697.0,0.00264]
[1743280363398,0.12182913,82698.0,82697.0,0.002]
[1743280363592,0.18212913,82698.0,82697.0,0.002]
[1743280363792,0.1209839,82687.0,82686.0,0.4817849]
[1743280363989,0.1217039,82687.0,82686.0,0.1216249]
[1743280364411,0.1217039,82687.0,82686.0,0.1549249]
[1743280364604,0.1849039,82687.0,82686.0,0.1549249]
[1743280365299,0.1849039,82687.0,82686.0,0.1589249]
[1743280365600,0.1849039,82687.0,82686.0,0.1629249]
[1743280365801,0.06392,82687.0,82686.0,0.1629249]
[1743280366303,0.1849039,82687.0,82686.0,0.1629249]
[1743280367303,0.06392,82687.0,82686.0,0.1629249]
[1743280367506,0.0632,82687.0,82686.0,0.1629249]
[1743280368400,0.1841839,82687.0,82686.0,0.1629249]
[1743280368707,0.1848639,82687.0,82686.0,0.1629249]
[1743280373809,0.1519639,82687.0,82686.0,0.1629249]
[1743280376704,0.1519639,82687.0,82686.0,0.17482653]
[1743280377908,0.1519639,82687.0,82686.0,0.1629249]
[1743280378105,0.1519639,82687.0,82686.0,0.00864]
[1743280378708,0.1837639,82687.0,82686.0,0.1296254]
[1743280378912,0.06278,82687.0,82686.0,0.1610254]
[1743280379416,0.1837639,82687.0,82686.0,0.1610254]
[1743280380718,0.00068,82687.0,82686.0,0.1610254]
[1743280380906,0.10851849,82693.0,82692.0,0.1209766]
[1743280381111,0.10919849,82693.0,82692.0,0.49784388]
[1743280381415,0.10851849,82693.0,82692.0,0.5097448]
[1743280381612,0.10923849,82693.0,82692.0,0.5097448]
[1743280381813,0.10923849,82693.0,82692.0,0.5725448]
[1743280382120,0.10923849,82693.0,82692.0,0.5745448]
[1743280383210,0.10923849,82693.0,82692.0,0.5765448]
[1743280384629,0.14469132,82696.0,82695.0,0.1209722]
[1743280384922,0.2,82700.0,82697.0,0.1209693]
[1743280385216,0.2,82700.0,82699.0,0.1209663]
[1743280385410,0.2,82700.0,82699.0,0.13711049]
[1743280387012,0.2,82700.0,82699.0,0.13712571]
[1743280387214,0.2,82700.0,82699.0,0.1217663]
[1743280387815,0.20076,82700.0,82699.0,0.1217663]
[1743280388621,0.2,82700.0,82699.0,0.1217663]
[1743280389217,0.2,82700.0,82699.0,0.13720365]
[1743280389613,0.01853628,82700.0,82699.0,0.13720365]
[1743280390723,0.13950118,82700.0,82699.0,0.13720365]
[1743280390912,0.13950118,82700.0,82699.0,0.0008]
[1743280391228,0.14038118,82700.0,82699.0,0.0008]
[1743280391431,0.21765599,82700.0,82699.0,0.0008]
[1743280391923,0.1209751,82693.0,82692.0,0.0322]
[1743280392119,0.1217351,82693.0,82692.0,0.03296]
[1743280392711,0.1217351,82693.0,82692.0,0.00076]
[1743280392712,0.1870351,82693.0,82692.0,0.00076]
[1743280393918,0.1870351,82693.0,82692.0,0.00276]
[1743280394109,0.1870351,82693.0,82692.0,0.00476]
[1743280395024,0.1870351,82693.0,82689.0,0.35907776]
[1743280395025,0.1209795,82690.0,82689.0,0.35907776]
[1743280395228,0.1209883,82684.0,82681.0,0.00018133]
[1743280395420,0.1210088,82670.0,82669.0,0.1210101]
[1743280395619,0.1217288,82670.0,82669.0,0.1216501]
[1743280395925,0.1217288,82670.0,82669.0,0.00064]
[1743280396321,0.1834288,82670.0,82669.0,0.06434]
[1743280396531,0.1834288,82670.0,82669.0,0.06634]
[1743280397126,0.1834288,82670.0,82669.0,0.1873502]
[1743280397629,0.1834288,82670.0,82669.0,0.06634]
[1743280398025,0.1834288,82670.0,82669.0,0.1873502]
[1743280398620,0.1834288,82670.0,82669.0,0.1893502]
[1743280401530,0.1834288,82670.0,82669.0,0.00464]
[1743280402020,0.1834288,82670.0,82669.0,0.004]
[1743280404727,0.1834288,82670.0,82669.0,0.00468]
[1743280404921,0.1834288,82670.0,82669.0,0.004]
[1743280405734,0.1834288,82670.0,82669.0,0.00464]
[1743280406924,0.1834288,82670.0,82669.0,0.004]
[1743280408425,0.5442288,82670.0,82669.0,0.00464]
[1743280408625,0.5442288,82670.0,82669.0,0.004]
[1743280409526,0.5442288,82670.0,82669.0,0.1879102]
[1743280409727,0.5442288,82670.0,82669.0,0.06754]
[1743280410823,0.5442288,82670.0,82669.0,0.1885502]
[1743280411234,0.1834288,82670.0,82669.0,0.1885502]
[1743280412319,0.1217288,82670.0,82669.0,0.1885502]
[1743280415835,0.1530288,82670.0,82669.0,0.1885502]
[1743280416943,0.1217288,82670.0,82669.0,0.1885502]
[1743280420029,0.1217288,82670.0,82669.0,0.06754]
[1743280420430,0.1843288,82670.0,82669.0,0.06754]
[1743280421330,0.1843288,82670.0,82669.0,0.1885502]
[1743280421637,0.1522288,82670.0,82669.0,0.1885502]
[1743280422337,0.1217288,82670.0,82669.0,0.1885502]
[1743280427229,0.1836288,82670.0,82669.0,0.1885502]
[1743280430141,0.1836288,82670.0,82669.0,0.1865502]
[1743280431035,0.1836288,82670.0,82669.0,0.1845502]
[1743280436748,0.00072,82670.0,82669.0,0.1845502]
[1743280436946,0.18086416,82673.0,82672.0,0.1210059]
[1743280437160,0.18162416,82673.0,82672.0,0.4825659]
[1743280438240,0.25343543,82688.0,82687.0,0.1209839]
[1743280438448,0.25451543,82688.0,82687.0,0.9645839]
[1743280438646,0.1209685,82698.0,82692.0,0.1209766]
[1743280438943,0.40420697,82700.0,82692.0,0.1209766]
[1743280438944,0.29037617,82693.0,82692.0,0.1222966]
[1743280439139,0.28905617,82693.0,82692.0,0.1222966]
[1743280441057,0.28905617,82693.0,82692.0,0.13423373]
[1743280441356,0.29045618,82693.0,82692.0,0.13423373]
[1743280441548,0.28905617,82693.0,82692.0,0.13423373]
[1743280441750,0.29037617,82693.0,82692.0,0.13423373]
[1743280441949,0.00132,82693.0,82692.0,0.13423373]
[1743280442152,0.0325,82697.0,82696.0,0.1209707]
[1743280442450,0.03386,82697.0,82696.0,0.4831707]
[1743280442652,0.0325,82697.0,82696.0,0.4831707]
[1743280443250,0.1534693,82697.0,82696.0,0.4831707]
[1743280443449,0.1547893,82697.0,82696.0,0.4831707]
[1743280444158,0.1557893,82697.0,82696.0,0.4831707]
[1743280444860,0.1567893,82697.0,82696.0,0.4831707]
[1743280445954,0.00332,82697.0,82696.0,0.4831707]
[1743280446150,0.00232,82697.0,82696.0,0.4831707]
[1743280446356,0.002,82697.0,82696.0,0.4831707]
[1743280446660,0.00336,82697.0,82696.0,0.4831707]
[1743280446845,0.00236,82697.0,82696.0,0.4831707]
[1743280447051,0.002,82697.0,82696.0,0.4831707]
[1743280447246,0.002,82697.0,82696.0,0.6040907]
[1743280448761,1e-08,82701.0,82696.0,0.48312]
[1743280448957,0.4092,82735.0,82715.0,0.1209429]
[1743280448958,0.0633,82716.0,82715.0,0.1209429]
[1743280449253,0.1855615,82716.0,82715.0,0.1222629]
[1743280449956,0.1855615,82716.0,82715.0,0.1851629]
[1743280450162,0.06462,82716.0,82715.0,0.1851629]
[1743280450358,0.1865615,82716.0,82715.0,0.1851629]
[1743280450561,0.1885615,82716.0,82715.0,0.1851629]
[1743280451459,0.06762,82716.0,82715.0,0.1851629]
[1743280451763,0.06762,82716.0,82715.0,0.19754026]
[1743280452171,0.06762,82716.0,82715.0,0.1851629]
[1743280452464,0.0663,82716.0,82715.0,0.1851629]
[1743280452661,0.0663,82716.0,82715.0,0.19729656]
[1743280453258,0.1872415,82716.0,82715.0,0.19729656]
[1743280453454,0.18864151,82716.0,82715.0,0.19729656]
[1743280454463,0.06770001,82716.0,82715.0,0.19729656]
[1743280454766,0.0333,82727.0,82723.0,0.1209313]
[1743280454956,0.0319,82726.0,82723.0,0.4835313]
[1743280455157,0.1213298,82724.0,82723.0,0.4835313]
[1743280455360,0.0004,82724.0,82723.0,0.5143313]
[1743280455557,0.1213298,82724.0,82723.0,0.5459313]
[1743280455760,0.0004,82724.0,82723.0,0.5459313]
[1743280456067,0.1223298,82724.0,82723.0,0.5459313]
[1743280458154,0.1545298,82724.0,82723.0,0.5459313]
[1743280460364,0.1545298,82724.0,82723.0,0.0018]
[1743280460676,0.1545298,82724.0,82723.0,0.1209313]
[1743280460970,0.1545298,82724.0,82723.0,0.1226513]
[1743280461163,0.1545298,82724.0,82723.0,0.1834513]
[1743280463660,0.0336,82724.0,82723.0,0.1834513]
[1743280464768,0.1545298,82724.0,82723.0,0.1834513]
[1743280466060,0.1545298,82724.0,82723.0,0.1531513]
[1743280466765,0.1545298,82724.0,82723.0,0.1838513]
[1743280469869,0.0336,82724.0,82723.0,0.1838513]
[1743280470168,0.0604597,82732.0,82723.0,0.1838513]
[1743280470169,0.55402353,82748.0,82729.0,0.0604611]
[1743280470371,0.0308,82731.0,82730.0,0.186721]
[1743280470573,0.0308,82731.0,82730.0,0.549361]
[1743280470766,0.0308,82731.0,82730.0,0.56495221]
[1743280476678,0.0308,82731.0,82730.0,0.56490235]
[1743280478171,0.0303,82735.0,82734.0,0.1209152]
[1743280478368,0.0303,82735.0,82734.0,0.13817655]
[1743280479475,0.0303,82735.0,82734.0,0.17087655]
[1743280479781,0.1512137,82735.0,82734.0,0.17087655]
[1743280483782,0.1512137,82735.0,82734.0,0.20417655]
[1743280484481,0.1512137,82735.0,82734.0,0.1886352]
[1743280485293,0.1512137,82735.0,82734.0,0.00172]
[1743280485981,0.16318599,82735.0,82734.0,0.00172]
[1743280486490,0.52398599,82735.0,82734.0,0.00172]
[1743280486672,0.52398599,82735.0,82734.0,0.1226352]
[1743280486984,0.16318599,82735.0,82734.0,0.1226352]
[1743280487788,0.16318599,82735.0,82734.0,0.1870352]
[1743280488490,0.1512137,82735.0,82734.0,0.1870352]
[1743280503291,0.1512137,82735.0,82734.0,0.19917155]
[1743280504606,0.0324,82736.0,82735.0,0.1209137]
[1743280504902,0.1533123,82736.0,82735.0,0.13820469]
[1743280505099,0.1533123,82736.0,82735.0,0.20340469]
[1743280505504,0.1533123,82736.0,82735.0,0.1878337]
[1743280505697,0.1533123,82736.0,82735.0,0.20344877]
[1743280508096,0.1533123,82736.0,82735.0,0.08253507]
[1743280508496,0.1533123,82736.0,82735.0,0.20344877]
[1743280510006,0.1533123,82736.0,82735.0,0.1878337]
[1743280512904,0.1533123,82736.0,82735.0,0.00172]
[1743280513207,0.1533123,82736.0,82730.0,0.21408898]
[1743280513208,0.1209196,82731.0,82730.0,0.21408898]
[1743280513509,0.60375961,82731.0,82730.0,0.21528898]
[1743280514102,0.66745961,82731.0,82730.0,0.21528898]
[1743280515005,0.54661961,82731.0,82730.0,0.21528898]
[1743280515207,0.66757961,82731.0,82730.0,0.21528898]
[1743280516506,0.66757961,82731.0,82730.0,0.0012]
[1743280516713,0.1209239,82728.0,82727.0,0.032]
[1743280517011,0.12212391,82728.0,82727.0,0.0332]
[1743280518702,0.48292391,82728.0,82727.0,0.0332]
[1743280518909,0.12212391,82728.0,82727.0,0.0332]
[1743280519107,0.48292391,82728.0,82727.0,0.0332]
[1743280519310,0.12212391,82728.0,82727.0,0.0332]
[1743280519607,0.12212391,82728.0,82726.0,0.00018133]
[1743280519608,0.1209254,82727.0,82726.0,0.00018133]
[1743280519812,0.1839254,82727.0,82726.0,0.00018133]
[1743280520203,0.1845654,82727.0,82726.0,0.00018133]
[1743280521406,0.18452024,82727.0,82717.0,0.0333]
[1743280521612,0.1209386,82718.0,82717.0,0.03458]
[1743280521812,0.1215786,82718.0,82717.0,0.03458]
[1743280522511,0.1855786,82718.0,82717.0,0.03458]
[1743280523204,0.19754529,82718.0,82717.0,0.03458]
[1743280523504,0.20054529,82718.0,82717.0,0.03458]
[1743280523905,0.1209429,82715.0,82714.0,0.0303]
[1743280524103,0.1209503,82710.0,82709.0,0.12113303]
[1743280524418,0.1218303,82710.0,82709.0,0.15527303]
[1743280525112,0.1844303,82710.0,82709.0,0.15527303]
[1743280527016,0.1844303,82710.0,82709.0,0.03432133]
[1743280527417,0.1864303,82710.0,82709.0,0.06472133]
[1743280528013,0.1874303,82710.0,82709.0,0.06472133]
[1743280530308,0.1844303,82710.0,82709.0,0.06472133]
[1743280530615,0.1874303,82710.0,82709.0,0.18567303]
[1743280530916,0.1218303,82710.0,82709.0,0.06472133]
[1743280531110,0.1248303,82710.0,82709.0,0.06472133]
[1743280531305,0.1248303,82710.0,82709.0,0.06388133]
[1743280531514,0.1873303,82710.0,82709.0,0.06388133]
[1743280531718,0.1873303,82710.0,82709.0,0.06472133]
[1743280533711,0.1873303,82710.0,82709.0,0.18567303]
[1743280534611,0.1554303,82710.0,82709.0,0.18567303]
[1743280534917,0.1248303,82710.0,82709.0,0.18567303]
[1743280536810,0.1218303,82710.0,82709.0,0.18567303]
[1743280537014,0.1248303,82710.0,82709.0,0.18567303]
[1743280538315,0.1248303,82710.0,82709.0,0.54647303]
[1743280539019,0.1248303,82710.0,82709.0,0.42552133]
[1743280539419,0.1248303,82710.0,82709.0,0.54647303]
[1743280539713,0.1238303,82710.0,82709.0,0.54647303]
[1743280539915,0.1871303,82710.0,82709.0,0.54647303]
[1743280541811,0.1566303,82710.0,82709.0,0.54647303]
[1743280543424,0.1238303,82710.0,82709.0,0.54647303]
[1743280546024,0.1238303,82710.0,82709.0,0.55834624]